Workbook

Sheet Opening Document
B2: UPON OPENING DOCUMENT…
B27: IF THE RED BANNER OCCURS….
B39: 1. DOWNLOAD DOCUMENT AND SAVE TO DESKTOP
B40: 2. RIGHT CLICK, PROPERTIES
B53: 3. CHECK OFF UNBLOCK, CLICK APPLY, CLICK OK
B54: 4. REOPEN EXCEL WORKBOOK
B55: 5. IF NEEDED, ENABLE EDITING, ENABLE CONTENT

Sheet Budget Summary
A2: Attachment A - Budget Worksheet
A19: SFY2025 Commonwealth Critical Incident Stress Management Program
A21: Cost Categories | C21: Cash Expenditures
A24: Personnel Costs | C24: ='Budget Detail'!E16 -> 0
A26: Consultants/Contractors Costs | C26: ='Budget Detail'!E26 -> 0
A28: Training Costs | C28: ='Budget Detail'!E36 -> 0
A30: Equipment Costs | C30: ='Budget Detail'!E46 -> 0
A32: Travel Costs | C32: ='Budget Detail'!E56 -> 0
A34: Supplies Costs | C34: ='Budget Detail'!E66 -> 0
A36: Other Costs | C36: ='Budget Detail'!E76 -> 0
A38: Total Costs | C38: ='Budget Detail'!E78 -> 0
A41: Name of Applicant Organization

Sheet Budget Detail
A1: Executive Office of Public Safety and Security
A2: Office of Grants and Research
A3: SFY2025 Commonwealth Critical Incident Stress Management Program
A4: =CONCATENATE("Attachment A - ", 'Budget Summary'!B41) -> Attachment A -
A6: INSTRUCTIONS: This is a macro-enabled document. Please make sure that you read the instructions on the Opening Document tab upon opening this document to make sure that macros are enabled macros. The items marked as Example are only examples, and do not necessarily reflect items in your requested budget. Please note that the subtotals will auto-populate based on the numbers reported within each category. Your requested budget per cost category shall be entered in the rows below the Examples using the "Add" command button to add another row if needed. If you have any questions, please contact the CISM grant manager assigned in the Availability of Grant Funds (AGF) document.
A7: Please read the Availability of Grant Funds (AGF) document. This will outline key dates, funding criteria, allowable and unallowable costs. Also, please note that all costs reported below should be based on a (4) Month Timeline.
A9: PERSONNEL - Full or part-time regular salaried employees working on the grant and general administrative for updating current resources, handouts, documents at interventions, upkeep of record keeping for active team member lists. Personnel costs are considered administration costs and shall not exceed 5% of your state award.
A11: Employee Name | B11: Pay Rate | C11: Quantity | D11: Description | E11: Cash Expenditures
A12: Example: Sue Smith | B12: 23.4875 | C12: 300 | D12: Please describe duties of Employee here. | E12: =IF(B12="","",ROUND(ROUND(B12,4)*ROUND(C12,4),2)) -> 7046.25
A13: Example: Tracey Thomas | B13: 1730.77 | C13: 6 | D13: $1730.77 per pay period x 6 pay periods. Reporting $5,000 match for T. Thomas expenses. | E13: =IF(B13="","",ROUND(ROUND(B13,4)*ROUND(C13,4),2)) -> 10384.62
E14: =IF(B14="","",ROUND(ROUND(B14,4)*ROUND(C14,6),2)) -> 
E15: =IF(B15="","",ROUND(ROUND(B15,4)*ROUND(C15,6),2)) -> 
A16: Subtotal: | E16: =SUM(OFFSET(Personnel,5,4):OFFSET(Contractors,-4,4)) -> 0
A19: CONSULTANTS/CONTRACTORS - Consultants are individuals hired to provide a service and possess expertise in crisis management (therapists, stipend for spiritual guidance and support services). The maximum rate for consultants is $650 for an eight-hour day or $81.25 per hour (excluding travel and subsistence costs). Contracts are for subawards to partnering agencies/organizations to provide counseling services.
A21: Contractors/Consultants Name | B21: Pay Rate | C21: Quantity | D21: Description | E21: Cash Expenditures
A22: Example: JJ Counseling | B22: 200 | C22: 24 | D22: Please provide the names of each Contractor and Consultant as well as duties/obligations that will be performed here. | E22: =IF(B22="","",ROUND(ROUND(B22,4)*ROUND(C22,4),2)) -> 4800
A23: Example: B & B Tech Support | B23: 45 | C23: 210 | D23: Installation of database and training; $45 per hour x 210 hours | E23: =IF(B23="","",ROUND(ROUND(B23,4)*ROUND(C23,4),2)) -> 9450
E24: =IF(B24="","",ROUND(ROUND(B24,4)*ROUND(C24,6),2)) -> 
E25: =IF(B25="","",ROUND(ROUND(B25,4)*ROUND(C25,6),2)) -> 
A26: Subtotal: | E26: =SUM(OFFSET(Contractors,5,4):OFFSET(Training,-4,4)) -> 0
A29: TRAINING - Team member training for CISM and Peer Support- Basic 3-day GRIN Training, 2 Day Suicide Prevention, Intervention and Postvention, Advanced Group Intervention Training, Trainings by the ICISF, etc.
A31: Activity | B31: Cost | C31: Quantity | D31: Description | E31: Cash Expenditures
A32: Example: 3 Day GRIN Training | B32: 250 | C32: 3 | D32: Please describe the trainings that will be taking place here. | E32: =IF(B32="","",ROUND(ROUND(B32,4)*ROUND(C32,4),2)) -> 750
A33: Example: Computer Keyboard | B33: 50 | C33: 3 | D33: Replacement keyboard, IBM part #872021. (3) keyboards at $50/each | E33: =IF(B33="","",ROUND(ROUND(B33,4)*ROUND(C33,4),2)) -> 150
E34: =IF(B34="","",ROUND(ROUND(B34,4)*ROUND(C34,6),2)) -> 
E35: =IF(B35="","",ROUND(ROUND(B35,4)*ROUND(C35,6),2)) -> 
A36: Subtotal: | E36: =SUM(OFFSET(Training,5,4):OFFSET(Equipment,-4,4)) -> 0
A39: EQUIPMENT - Tangible, non-expendable personal property having a useful life of more than one year; cost based on classification of equipment (e.g., communication, IT, etc.). Team Cell phone for in the moment assistance
A41: Equipment | B41: Cost | C41: Quantity | D41: Description | E41: Cash Expenditures
A42: Example: Laptop | B42: 1200 | C42: 1 | D42: Please describe purpose of Equipment here. | E42: =IF(B42="","",ROUND(ROUND(B42,4)*ROUND(C42,4),2)) -> 1200
A43: Example: Computer Keyboard | B43: 50 | C43: 3 | D43: Replacement keyboard, IBM part #872021. (3) keyboards at $50/each | E43: =IF(B43="","",ROUND(ROUND(B43,4)*ROUND(C43,4),2)) -> 150
E44: =IF(B44="","",ROUND(ROUND(B44,4)*ROUND(C44,6),2)) -> 
E45: =IF(B45="","",ROUND(ROUND(B45,4)*ROUND(C45,6),2)) -> 
A46: Subtotal: | E46: =SUM(OFFSET(Equipment,5,4):OFFSET(Travel,-4,4)) -> 0
A49: TRAVEL - Travel directly related to the purpose of the grant. In-state travel costs associated with the grant shall include mileage rates not in excess of $0.62 per mile, as well as the actual costs of tolls and parking. No grant funds may be spent for out-of-state conference fees, out-of-state travel or out-of-state lodging without prior written approval from OGR.
A51: Employee Name | B51: Rate | C51: Quantity | D51: Description | E51: Cash Expenditures
A52: Example: Sue Smith | B52: 250 | C52: 1 | D52: Gas reimbursement related to grant. | E52: =IF(B52="","",ROUND(ROUND(B52,4)*ROUND(C52,4),2)) -> 250
A53: Example: Tracey Thomas | B53: 0.62 | C53: 500 | D53: Travel related to grant; $0.62/mile x 500 miles | E53: =IF(B53="","",ROUND(ROUND(B53,4)*ROUND(C53,4),2)) -> 310
E54: =IF(B54="","",ROUND(ROUND(B54,4)*ROUND(C54,6),2)) -> 
E55: =IF(B55="","",ROUND(ROUND(B55,4)*ROUND(C55,6),2)) -> 
A56: Subtotal: | E56: =SUM(OFFSET(Travel,5,4):OFFSET(Supplies,-4,4)) -> 0
A59: SUPPLIES - General supplies directly related to the CISM program such as business cards for post intervention contact purposes, paper needed for training materials and other expendable items.
A61: Supplies/Company | B61: Cost | C61: Quantity | D61: Description | E61: Cash Expenditures
A62: Example: Copy Paper | B62: 50 | C62: 4 | D62: Please describe purpose of Supplies here. | E62: =IF(B62="","",ROUND(ROUND(B62,4)*ROUND(C62,4),2)) -> 200
A63: Example: ABC Office Supply | B63: 75 | C63: 1 | D63: 1 lot of office supplies (pens, staples, paperclips), $75/lot | E63: =IF(B63="","",ROUND(ROUND(B63,4)*ROUND(C63,4),2)) -> 75
E64: =IF(B64="","",ROUND(ROUND(B64,4)*ROUND(C64,6),2)) -> 
E65: =IF(B65="","",ROUND(ROUND(B65,4)*ROUND(C65,6),2)) -> 
A66: Subtotal: | E66: =SUM(OFFSET(Supplies,5,4):OFFSET(Other,-4,4)) -> 0
A69: OTHER - Meeting room space/room rental costs, membership fees etc.
A71: Item/Company | B71: Cost | C71: Quantity | D71: Description | E71: Cash Expenditures
A72: Example: Space Rental | B72: 50 | C72: 6 | D72: Please describe purpose of item/activity here. | E72: =IF(B72="","",ROUND(ROUND(B72,4)*ROUND(C72,4),2)) -> 300
A73: Example: Heat | B73: 6000 | C73: 0.25 | D73: Projected total bill for office during grant period is $6,000.00; this program is 1/4 of office space | E73: =IF(B73="","",ROUND(ROUND(B73,4)*ROUND(C73,4),2)) -> 1500
E74: =IF(B74="","",ROUND(ROUND(B74,4)*ROUND(C74,6),2)) -> 
E75: =IF(B75="","",ROUND(ROUND(B75,4)*ROUND(C75,6),2)) -> 
A76: Subtotal: | E76: =SUM(OFFSET(Other,5,4):OFFSET(GrandTotal,-3,4)) -> 0
A78: Grand Total: | E78: =ROUND(SUM(E16+E26+E36+E46+E56+E66+E76),2) -> 0
